Departmental family,Entity,Date Paid,Expense type,Expense Area ,Supplier,Transaction Number, Amount ,Description,Supplier Type,Expenditure Type
UK Statistics Authority,Office For National Statistics,03/06/2019,Surveys,Social Surveys Division,Natcen Social Research,139503," 73,709.75 ", Statistical Services,Large,Programme Exp
UK Statistics Authority,Office For National Statistics,03/06/2019,Exp - Purchase Of Goods/Services - Incentive Payments,Interviewer Support,Park Retail Ltd,139504," 160,482.08 ", Survey Incentive Vouchers,Large,Programme Exp
UK Statistics Authority,Office For National Statistics,03/06/2019,Exp - Purchase Of Goods/Services - Incentive Payments,Interviewer Support,Park Retail Ltd,139504," 49,436.36 ", Survey Incentive Vouchers,Large,Programme Exp
UK Statistics Authority,Office For National Statistics,03/06/2019,Exp - Purchase Of Goods/Services - Incentive Payments,Interviewer Support,Park Retail Ltd,139504," 2,153.97 ", Survey Incentive Vouchers,Large,Programme Exp
UK Statistics Authority,Office For National Statistics,03/06/2019,Exp - Purchase Of Goods/Services - Incentive Payments,Interviewer Support,Park Retail Ltd,139504," 28,045.61 ", Survey Incentive Vouchers,Large,Programme Exp
UK Statistics Authority,Office For National Statistics,03/06/2019,Exp - Purchase Of Goods/Services - Incentive Payments,Survey Management,Park Retail Ltd,139504," 1,989.00 ", Survey Incentive Vouchers,Large,Programme Exp
UK Statistics Authority,Office For National Statistics,03/06/2019,Exp - Purchase Of Goods/Services - Contractors,Census & Soc Methodology Dd,Concept Information Technology Ltd T/A Concept Resourcing,139505," 3,829.37 ", Information Management Services,Large,Programme Exp
UK Statistics Authority,Office For National Statistics,03/06/2019,Exp - Purchase Of Goods/Services - It Contractual Services,Digital Delivery,Concept Information Technology Ltd T/A Concept Resourcing,139505," 11,448.00 ", Information Management Services,Large,Programme Exp
UK Statistics Authority,Office For National Statistics,03/06/2019,Exp - Short-Term Contract & Agency Staff - Full Cost,Survey Processing Centre,Concept Information Technology Ltd T/A Concept Resourcing,139505," 4,014.72 ", Information Management Services,Large,Programme Exp
UK Statistics Authority,Office For National Statistics,03/06/2019,Exp - Short-Term Contract & Agency Staff - Full Cost,Interviewer Management Tu,Concept Information Technology Ltd T/A Concept Resourcing,139505," 1,204.74 ", Information Management Services,Large,Programme Exp
UK Statistics Authority,Office For National Statistics,03/06/2019,Exp - Short-Term Contract & Agency Staff - Full Cost,Prices Division,Concept Information Technology Ltd T/A Concept Resourcing,139505," 2,770.84 ", Information Management Services,Large,Programme Exp
UK Statistics Authority,Office For National Statistics,03/06/2019,Exp - Short-Term Contract & Agency Staff - Full Cost,Business Outputs And Developments,Concept Information Technology Ltd T/A Concept Resourcing,139505," 3,570.85 ", Information Management Services,Large,Programme Exp
UK Statistics Authority,Office For National Statistics,03/06/2019,Exp - Short-Term Contract & Agency Staff - Full Cost,Labour Market,Concept Information Technology Ltd T/A Concept Resourcing,139505," 3,758.09 ", Information Management Services,Large,Programme Exp
UK Statistics Authority,Office For National Statistics,03/06/2019,Telecoms,It Operations,Bt Global Services,139507," 49,105.91 ", BT Cloud Services,Large,Programme Exp
UK Statistics Authority,Office For National Statistics,03/06/2019,Travel And Subsistence,Cwt Trainline,Corporate Travel Management ,139508," 70,392.60 ", Travel and Accommodation Booking Service ,SME,Programme Exp
UK Statistics Authority,Office For National Statistics,03/06/2019,Telecoms,Tech Delivery Next Gen It And Infrastructure,CenturyLink Communications UK Ltd,139510," 28,884.02 ", Service Contract,Large,Programme Exp
UK Statistics Authority,Office For National Statistics,03/06/2019,"Ict Outsourcing, Maintenance And Support",It Operations,CenturyLink Communications UK Ltd,139510," 8,208.00 ", Service Contract,Large,Programme Exp
UK Statistics Authority,Office For National Statistics,03/06/2019,Telecoms,It Operations,CenturyLink Communications UK Ltd,139510," 51,908.53 ", Licenses,Large,Programme Exp
UK Statistics Authority,Office For National Statistics,03/06/2019,Exp - Purchase Of Goods/Services - It Contractual Services,Dst Reapportioning,Qa Ltd,139511," 207,330.00 ", Information Management Services,Large,Programme Exp
UK Statistics Authority,Office For National Statistics,03/06/2019,Exp - Purchase Of Goods/Services - It Contractual Services,Dst Reapportioning,Qa Ltd,139512," 116,328.00 ", Information Management Services,Large,Programme Exp
UK Statistics Authority,Office For National Statistics,03/06/2019,Stationery,Ask Business Services,APS Group,139516, 362.28 , Stationery for External Reprographics,Large,Programme Exp
UK Statistics Authority,Office For National Statistics,03/06/2019,Stationery,Ask Business Services,APS Group,139516, 195.07 , Stationery for External Reprographics,Large,Programme Exp
UK Statistics Authority,Office For National Statistics,03/06/2019,Marketing & Media,Social Survey Transformation Newport,APS Group,139516," 94,390.14 ",Labour  Market Survey Information Management Services,Large,Programme Exp
UK Statistics Authority,Office For National Statistics,03/06/2019,Capital Major Works >25K,Property Newport,Paramount Office Interiors Ltd,139519," 19,071.84 ", Major Works Newport,SME,Programme Exp
UK Statistics Authority,Office For National Statistics,03/06/2019,Major Works Over 25K,Property Newport,Paramount Office Interiors Ltd,139519," 44,500.97 ", Major Works Newport,SME,Programme Exp
UK Statistics Authority,Office For National Statistics,03/06/2019,Exp - Purchase Of Goods And Services Consultants,Consultancy Management,Bloom Procurement Services Ltd,139520," 815,002.80 ", Census Information Magement Service,Large,Programme Exp
UK Statistics Authority,Office For National Statistics,05/06/2019,Travel And Subsistence,Cwt Trainline,Calder World of Travel,139843," 39,211.67 ", Travel and Accommodation Booking Service ,SME,Programme Exp
UK Statistics Authority,Office For National Statistics,05/06/2019,Furniture >5K Per Item,Property Titchfield,Gresham Office Furniture Limited,139853," 30,646.38 ", Smart Working Furniture  ,SME,Programme Exp
UK Statistics Authority,Office For National Statistics,05/06/2019,"Ict Outsourcing, Maintenance And Support",Tech Delivery Next Gen It And Infrastructure,Crown Hosting Data Centres Limited,139858, 860.00 , Crown Hosted Data Centre,SME,Programme Exp
UK Statistics Authority,Office For National Statistics,05/06/2019,Telecoms,It Operations,Crown Hosting Data Centres Limited,139858," 1,720.01 ", Crown Hosted Data Centre,SME,Programme Exp
UK Statistics Authority,Office For National Statistics,05/06/2019,It Management And Change,It Operations,Crown Hosting Data Centres Limited,139858," 72,275.00 ", Crown Hosted Data Centre,SME,Programme Exp
UK Statistics Authority,Office For National Statistics,05/06/2019,Telecoms,It Operations,Vodafone Corporate Ltd,139860," 38,791.58 ", Corporate Mobile Phone Charges ,Large,Programme Exp
UK Statistics Authority,Office For National Statistics,05/06/2019,Exp - Purchase Of Goods/Services - It Contractual Services,Survey Design And Assurance,Empiric Solutions Limited,139862," 32,100.48 ", Information Management Services,Large,Programme Exp
UK Statistics Authority,Office For National Statistics,05/06/2019,Exp - Purchase Of Goods/Services - It Contractual Services,Dst Reapportioning,Empiric Solutions Limited,139862," 80,340.00 ", Information Management Services,Large,Programme Exp
UK Statistics Authority,Office For National Statistics,05/06/2019,Exp - Purchase Of Goods/Services - Contractor Travel,Strategy And Architecture,Empiric Solutions Limited,139862, 592.36 , Information Management Services,Large,Programme Exp
UK Statistics Authority,Office For National Statistics,05/06/2019,Telecoms,It Operations,Bt Global Services,139865," 49,105.91 ", BT Cloud Services,Large,Programme Exp
UK Statistics Authority,Office For National Statistics,05/06/2019,Software Licences At Cost - Additions,Digital Delivery,Xma Limited,139866," 8,871.66 ", Licences ,Large,Programme Exp
UK Statistics Authority,Office For National Statistics,05/06/2019,It Management And Change,Digital Delivery,Xma Limited,139866," 36,432.24 ", Computer Hardware and Peripherals,Large,Programme Exp
UK Statistics Authority,Office For National Statistics,05/06/2019,Travel And Subsistence,Cwt Trainline,Corporate Travel Management ,139867," 57,895.75 ", Travel and Accommodation Booking Service ,SME,Programme Exp
UK Statistics Authority,Office For National Statistics,06/06/2019,Exp - Purchase Of Goods/Services - It Contractual Services,Dst Reapportioning,Methods Business & Digital Technology Ltd,139885," 168,300.00 ", Information Management Services ,Large,Programme Exp
UK Statistics Authority,Office For National Statistics,06/06/2019,Exp - Purchase Of Goods/Services - Contractors,Business Architecture,Certes Computing Ltd,139886," 5,040.00 ", Information Management Services ,SME,Programme Exp
UK Statistics Authority,Office For National Statistics,06/06/2019,Exp - Purchase Of Goods/Services - Contractors,Testing,Certes Computing Ltd,139886," 23,621.64 ", Information Management Services ,SME,Programme Exp
UK Statistics Authority,Office For National Statistics,06/06/2019,Exp - Purchase Of Goods/Services - Contractors,Testing,La International,139887," 2,819.38 ", Information Management Services ,SME,Programme Exp
UK Statistics Authority,Office For National Statistics,06/06/2019,Exp - Purchase Of Goods/Services - Contractors,Programme Delivery,La International,139887," 5,766.98 ", Information Management Services ,SME,Programme Exp
UK Statistics Authority,Office For National Statistics,06/06/2019,Exp - Purchase Of Goods/Services - Contractors,Digital Publishing,La International,139887," 17,268.68 ", Information Management Services ,SME,Programme Exp
UK Statistics Authority,Office For National Statistics,06/06/2019,Exp - Purchase Of Goods/Services - It Contractual Services,Dst Reapportioning,Qa Ltd,139889," 53,100.00 ", Information Management Services,Large,Programme Exp
UK Statistics Authority,Office For National Statistics,06/06/2019,Exp - Purchase Of Goods And Services Consultants,Tech Delivery Srs,Equiniti-TopLevel,139895," 84,787.20 ", Information Management Services,SME,Programme Exp
UK Statistics Authority,Office For National Statistics,06/06/2019,Training & Development,Office Of Chief Data And Information,Armakuni Ltd,139896," 44,400.00 ", Training ,SME,Programme Exp
UK Statistics Authority,Office For National Statistics,06/06/2019,Rent Payable,Property Titchfield,Eaton Aerospace Limited,139898," 27,488.40 ", Titchfield Rent,Large,Programme Exp
UK Statistics Authority,Office For National Statistics,06/06/2019,"Ict Outsourcing, Maintenance And Support",Senior Management Team Design,Totalmobile Ltd,139900," 183,604.80 ", Census Information Management Services and Enterprise License ,SME,Programme Exp
UK Statistics Authority,Office For National Statistics,10/06/2019,Exp - Purchase Of Goods/Services - It Contractual Services,Dst Reapportioning,E Synergy Solutions,140363," 68,430.00 ", Information Management Services ,SME,Programme Exp
UK Statistics Authority,Office For National Statistics,10/06/2019,Telecoms,It Operations,Bt Global Services,140375," 31,297.02 ", BT Cloud Services,Large,Programme Exp
UK Statistics Authority,Office For National Statistics,10/06/2019,"Ict Outsourcing, Maintenance And Support",It Operations,FlyForm Ltd,140381," 52,110.00 ",Information Management Services,SME,Programme Exp
UK Statistics Authority,Office For National Statistics,10/06/2019,Rent Payable,Property London,James Andrew RSW Ltd,140383," 243,432.00 ", Drummond Gate Rent,SME,Programme Exp
UK Statistics Authority,Office For National Statistics,11/06/2019,Exp - Purchase Of Goods/Services - Other Ict Costs Software,Finance,Scc,140402," 154,286.88 ", Oracle Cloud and HCM Licenses,Large,Programme Exp
UK Statistics Authority,Office For National Statistics,11/06/2019,Surveys,Prices Division,Kantar UK Ltd,140404," 192,089.20 ", Statistical Services,Large,Programme Exp
UK Statistics Authority,Office For National Statistics,11/06/2019,Travel And Subsistence,Cwt Trainline,Corporate Travel Management ,140407," 80,912.58 ", Travel and Accommodation Booking Service ,SME,Programme Exp
UK Statistics Authority,Office For National Statistics,12/06/2019,Travel And Subsistence,Cwt Trainline,Corporate Travel Management ,140423," 71,249.66 ", Travel and Accommodation Booking Service ,SME,Programme Exp
UK Statistics Authority,Office For National Statistics,12/06/2019,Stationery,Lodgecard,Royal Bank of Scotland,140425," 7,647.81 ", Multiple Procurement Card Stationery Purchases  ,Large,Programme Exp
UK Statistics Authority,Office For National Statistics,12/06/2019,Other Goods And Services,Gpc,Royal Bank of Scotland,140425," 65,211.17 ", Multiple Procurement Card Stationery Purchases  ,Large,Programme Exp
UK Statistics Authority,Office For National Statistics,12/06/2019,Travel And Subsistence,Car Hire,Royal Bank of Scotland,140425," 59,991.95 ", Multiple Procurement Card Car Hire Purchases  ,Large,Programme Exp
UK Statistics Authority,Office For National Statistics,13/06/2019,Accommodation & Building Management,Mitie Payments,Vinci Construction UK Limited,140825," 40,958.53 ", Facility Management Services,Large,Programme Exp
UK Statistics Authority,Office For National Statistics,13/06/2019,Fm Contract Payments,Mitie Payments,Vinci Construction UK Limited,140825," 22,130.36 ", Facility Management Services,Large,Programme Exp
UK Statistics Authority,Office For National Statistics,14/06/2019,Exp - Purchase Of Goods/Services - It Contractual Services,Dst Reapportioning,E Synergy Solutions,140849," 196,023.00 ", Information Management Services ,SME,Programme Exp
UK Statistics Authority,Office For National Statistics,14/06/2019,Exp - Purchase Of Goods/Services - It Contractual Services,It Operations,E Synergy Solutions,140849," 1,410.00 ", Information Management Services ,SME,Programme Exp
UK Statistics Authority,Office For National Statistics,20/06/2019,Exp - Purchase Of Goods/Services - It Contractual Services,Survey Design And Assurance,Empiric Solutions Limited,141802," 14,040.00 ", Information Management Services,Large,Programme Exp
UK Statistics Authority,Office For National Statistics,20/06/2019,Exp - Purchase Of Goods/Services - It Contractual Services,Dst Reapportioning,Empiric Solutions Limited,141802," 15,600.00 ", Information Management Services,Large,Programme Exp
UK Statistics Authority,Office For National Statistics,20/06/2019,Exp - Purchase Of Goods/Services - Contractor Travel,Strategy And Architecture,Empiric Solutions Limited,141802, 18.12 , Information Management Services,Large,Programme Exp
UK Statistics Authority,Office For National Statistics,20/06/2019,Exp - Purchase Of Goods/Services - Contractors,Beyond 2021 Research And Design,Concept Information Technology Ltd T/A Concept Resourcing,141803," 3,563.54 ", Information Management Services,Large,Programme Exp
UK Statistics Authority,Office For National Statistics,20/06/2019,Exp - Short-Term Contract & Agency Staff - Full Cost,Business Change Support,Concept Information Technology Ltd T/A Concept Resourcing,141803," 7,982.40 ", Information Management Services,Large,Programme Exp
UK Statistics Authority,Office For National Statistics,20/06/2019,Exp - Short-Term Contract & Agency Staff - Full Cost,Business Change Support,Concept Information Technology Ltd T/A Concept Resourcing,141803," 3,163.75 ", Information Management Services,Large,Programme Exp
UK Statistics Authority,Office For National Statistics,20/06/2019,Exp - Short-Term Contract & Agency Staff - Full Cost,Business Change Support,Concept Information Technology Ltd T/A Concept Resourcing,141803," 3,459.59 ", Information Management Services,Large,Programme Exp
UK Statistics Authority,Office For National Statistics,20/06/2019,Exp - Short-Term Contract & Agency Staff - Full Cost,Business Change Support,Concept Information Technology Ltd T/A Concept Resourcing,141803," 3,760.24 ", Information Management Services,Large,Programme Exp
UK Statistics Authority,Office For National Statistics,20/06/2019,Exp - Purchase Of Goods/Services - Contractors,Business Change Support,Concept Information Technology Ltd T/A Concept Resourcing,141803," 3,376.94 ", Information Management Services,Large,Programme Exp
UK Statistics Authority,Office For National Statistics,20/06/2019,Exp - Purchase Of Goods/Services - Contractors,Business Change Support,Concept Information Technology Ltd T/A Concept Resourcing,141803," 2,770.56 ", Information Management Services,Large,Programme Exp
UK Statistics Authority,Office For National Statistics,20/06/2019,Exp - Purchase Of Goods/Services - Contractors,Business Change Support,Concept Information Technology Ltd T/A Concept Resourcing,141803," 3,760.24 ", Information Management Services,Large,Programme Exp
UK Statistics Authority,Office For National Statistics,20/06/2019,Exp - Purchase Of Goods/Services - Contractors,N A Coordination,Concept Information Technology Ltd T/A Concept Resourcing,141803," 2,603.39 ", Information Management Services,Large,Programme Exp
UK Statistics Authority,Office For National Statistics,20/06/2019,Exp - Short-Term Contract & Agency Staff - Full Cost,Productivity Innovation Engagement And Research,Concept Information Technology Ltd T/A Concept Resourcing,141803," 2,770.56 ", Information Management Services,Large,Programme Exp
UK Statistics Authority,Office For National Statistics,20/06/2019,Exp - Short-Term Contract & Agency Staff - Full Cost,Strategy And Engagement,Concept Information Technology Ltd T/A Concept Resourcing,141803," 3,760.24 ", Information Management Services,Large,Programme Exp
UK Statistics Authority,Office For National Statistics,20/06/2019,Exp - Short-Term Contract & Agency Staff - Full Cost,Finance,Concept Information Technology Ltd T/A Concept Resourcing,141803," 2,374.20 ", Information Management Services,Large,Programme Exp
UK Statistics Authority,Office For National Statistics,20/06/2019,Exp - Purchase Of Goods/Services - Contractors,Recruitment,Concept Information Technology Ltd T/A Concept Resourcing,141803, 14.20 , Information Management Services,Large,Programme Exp
UK Statistics Authority,Office For National Statistics,20/06/2019,Travel And Subsistence,Cwt Trainline,Corporate Travel Management ,141805," 77,979.39 ", Travel and Accommodation Booking Service ,SME,Programme Exp
UK Statistics Authority,Office For National Statistics,20/06/2019,Telecoms,It Operations,CenturyLink Communications UK Ltd,141808," 32,206.61 ", Licenses and Support,Large,Programme Exp
UK Statistics Authority,Office For National Statistics,21/06/2019,Exp - Purchase Of Goods/Services - Contractors,Beyond 2021 Research And Design,Concept Information Technology Ltd T/A Concept Resourcing,142067," 3,437.12 ", Information Management Services,Large,Programme Exp
UK Statistics Authority,Office For National Statistics,21/06/2019,Exp - Short-Term Contract & Agency Staff - Full Cost,Business Change Support,Concept Information Technology Ltd T/A Concept Resourcing,142067," 3,760.50 ", Information Management Services,Large,Programme Exp
UK Statistics Authority,Office For National Statistics,21/06/2019,Exp - Short-Term Contract & Agency Staff - Full Cost,Business Change Support,Concept Information Technology Ltd T/A Concept Resourcing,142067," 3,758.36 ", Information Management Services,Large,Programme Exp
UK Statistics Authority,Office For National Statistics,21/06/2019,Exp - Short-Term Contract & Agency Staff - Full Cost,Business Change Support,Concept Information Technology Ltd T/A Concept Resourcing,142067," 11,252.39 ", Information Management Services,Large,Programme Exp
UK Statistics Authority,Office For National Statistics,21/06/2019,Exp - Purchase Of Goods/Services - Contractors,Business Change Support,Concept Information Technology Ltd T/A Concept Resourcing,142067, 387.85 , Information Management Services,Large,Programme Exp
UK Statistics Authority,Office For National Statistics,21/06/2019,Exp - Purchase Of Goods/Services - Contractors,Business Change Support,Concept Information Technology Ltd T/A Concept Resourcing,142067," 3,573.00 ", Information Management Services,Large,Programme Exp
UK Statistics Authority,Office For National Statistics,21/06/2019,Exp - Purchase Of Goods/Services - Contractors,Business Change Support,Concept Information Technology Ltd T/A Concept Resourcing,142067, 989.68 , Information Management Services,Large,Programme Exp
UK Statistics Authority,Office For National Statistics,21/06/2019,Exp - Purchase Of Goods/Services - Contractors,Business Change Support,Concept Information Technology Ltd T/A Concept Resourcing,142067," 3,305.52 ", Information Management Services,Large,Programme Exp
UK Statistics Authority,Office For National Statistics,21/06/2019,Exp - Purchase Of Goods/Services - Contractors,Business Change Support,Concept Information Technology Ltd T/A Concept Resourcing,142067, 15.98 , Information Management Services,Large,Programme Exp
UK Statistics Authority,Office For National Statistics,21/06/2019,Exp - Purchase Of Goods/Services - Contractors,N A Coordination,Concept Information Technology Ltd T/A Concept Resourcing,142067," 3,760.24 ", Information Management Services,Large,Programme Exp
UK Statistics Authority,Office For National Statistics,21/06/2019,Exp - Short-Term Contract & Agency Staff - Full Cost,Business Indicators And B O P,Concept Information Technology Ltd T/A Concept Resourcing,142067," 3,759.97 ", Information Management Services,Large,Programme Exp
UK Statistics Authority,Office For National Statistics,21/06/2019,Exp - Purchase Of Goods/Services - Contractors,Business Indicators And B O P,Concept Information Technology Ltd T/A Concept Resourcing,142067," 3,292.14 ", Information Management Services,Large,Programme Exp
UK Statistics Authority,Office For National Statistics,21/06/2019,Exp - Purchase Of Goods/Services - Contractors,Productivity Innovation Engagement And Research,Concept Information Technology Ltd T/A Concept Resourcing,142067," 3,760.50 ", Information Management Services,Large,Programme Exp
UK Statistics Authority,Office For National Statistics,21/06/2019,Exp - Short-Term Contract & Agency Staff - Full Cost,Economic Analysis,Concept Information Technology Ltd T/A Concept Resourcing,142067," 7,338.25 ", Information Management Services,Large,Programme Exp
UK Statistics Authority,Office For National Statistics,21/06/2019,Exp - Short-Term Contract & Agency Staff - Full Cost,Finance,Concept Information Technology Ltd T/A Concept Resourcing,142067," 2,592.83 ", Information Management Services,Large,Programme Exp
UK Statistics Authority,Office For National Statistics,21/06/2019,Exp - Short-Term Contract & Agency Staff - Full Cost,Census & Soc Methodology Dd,Concept Information Technology Ltd T/A Concept Resourcing,142067," 4,023.52 ", Information Management Services,Large,Programme Exp
UK Statistics Authority,Office For National Statistics,21/06/2019,Exp - Purchase Of Goods/Services - Contractors,Business Statistics Transformation,Concept Information Technology Ltd T/A Concept Resourcing,142067," 3,758.10 ", Information Management Services,Large,Programme Exp
UK Statistics Authority,Office For National Statistics,21/06/2019,Exp - Short-Term Contract & Agency Staff - Full Cost,Interviewer Management Tu,Concept Information Technology Ltd T/A Concept Resourcing,142067, 346.42 , Information Management Services,Large,Programme Exp
UK Statistics Authority,Office For National Statistics,21/06/2019,Exp - Purchase Of Goods And Services Consultants,Consultancy Management,Deloitte,142072," 33,160.80 ", Census Information Management Service,Large,Programme Exp
UK Statistics Authority,Office For National Statistics,21/06/2019,Software Licences At Cost - Additions,Cdio Ungp,Amazon Web Services Inc,142079," 31,421.48 ", Web Hosting Services,Large,Programme Exp
UK Statistics Authority,Office For National Statistics,24/06/2019,Software Licences At Cost - Additions,Cdio Ungp,Amazon Web Services Inc,142094," 35,464.15 ", Web Hosting Services,Large,Programme Exp
UK Statistics Authority,Office For National Statistics,26/06/2019,Surveys,Sustainability And Inequalities,Ricardo-AEA Ltd,142441," 61,560.35 ", Statistical Services,SME,Programme Exp
UK Statistics Authority,Office For National Statistics,26/06/2019,It (Owned) At Cost - Additions,Tech Delivery Next Gen It And Infrastructure,Scc,142442," 138,573.47 ", Instalation and Support Services,Large,Programme Exp
UK Statistics Authority,Office For National Statistics,26/06/2019,Exp - Purchase Of Goods And Services Consultants,Tech Delivery Next Gen It And Infrastructure,Scc,142442," 63,612.18 ", Instalation and Support Services,Large,Programme Exp
UK Statistics Authority,Office For National Statistics,26/06/2019,Postage,Tech Delivery Next Gen It And Infrastructure,Scc,142442," 2,394.09 ", Instalation and Support Services,Large,Programme Exp
UK Statistics Authority,Office For National Statistics,26/06/2019,"Ict Outsourcing, Maintenance And Support",Tech Delivery Next Gen It And Infrastructure,Scc,142442, 817.68 , Instalation and Support Services,Large,Programme Exp
UK Statistics Authority,Office For National Statistics,26/06/2019,"Ict Outsourcing, Maintenance And Support",It Operations,Scc,142442," 28,618.90 ", Instalation and Support Services,Large,Programme Exp
UK Statistics Authority,Office For National Statistics,26/06/2019,Telecoms,It Operations,Bt Global Services,142443," 26,383.19 ", BT Cloud Services,Large,Programme Exp
UK Statistics Authority,Office For National Statistics,26/06/2019,Exp - Purchase Of Goods/Services - Other Ict Costs Software,It Operations,Ibm United Kingdom Ltd,142445," 67,468.80 ", Licenses,Large,Programme Exp
UK Statistics Authority,Office For National Statistics,26/06/2019,Travel And Subsistence,Cwt Trainline,Corporate Travel Management ,142446," 78,979.91 ", Travel and Accommodation Booking Service ,SME,Programme Exp
UK Statistics Authority,Office For National Statistics,26/06/2019,Travel And Subsistence,Business Change Support,Equiniti Limited,142447," 24,000.00 ", Information Management Services ,Large,Programme Exp
UK Statistics Authority,Office For National Statistics,26/06/2019,Surveys,Business Indicators And B O P,Equiniti Limited,142447," 72,000.00 ", Information Management Services ,Large,Programme Exp
UK Statistics Authority,Office For National Statistics,26/06/2019,"Ict Outsourcing, Maintenance And Support",It Operations,Equiniti Limited,142448," 47,212.80 ", Information Management Services ,Large,Programme Exp
UK Statistics Authority,Office For National Statistics,26/06/2019,"Ict Outsourcing, Maintenance And Support",It Operations,Softcat,142449," 33,729.90 "," Software Licenses, Maintenance and Support",SME,Programme Exp
UK Statistics Authority,Office For National Statistics,26/06/2019,Exp - Purchase Of Goods/Services - Contractors,Programme Delivery,Certes Computing Ltd,142451," 14,731.50 ", Information Management Services ,SME,Programme Exp
UK Statistics Authority,Office For National Statistics,26/06/2019,Exp - Purchase Of Goods/Services - Contractors,Business Indicators And B O P,Certes Computing Ltd,142451," 26,965.24 ", Information Management Services ,SME,Programme Exp
UK Statistics Authority,Office For National Statistics,26/06/2019,Exp - Purchase Of Goods/Services - Contractors,Economic Statistics Architecture Business Change,Certes Computing Ltd,142451," 9,030.60 ", Information Management Services ,SME,Programme Exp
UK Statistics Authority,Office For National Statistics,26/06/2019,Exp - Purchase Of Goods/Services - Contractors,Researcher Support And Data Access ,Certes Computing Ltd,142451," 15,118.49 ", Information Management Services ,SME,Programme Exp
UK Statistics Authority,Office For National Statistics,26/06/2019,Exp - Purchase Of Goods/Services - Contractors,Hr Business Partners,Certes Computing Ltd,142451," 10,248.00 ", Information Management Services ,SME,Programme Exp
UK Statistics Authority,Office For National Statistics,26/06/2019,Exp - Purchase Of Goods/Services - Contractors,Security Advisory,Certes Computing Ltd,142451," 11,657.18 ", Information Management Services ,SME,Programme Exp
UK Statistics Authority,Office For National Statistics,26/06/2019,Exp - Purchase Of Goods/Services - Contractors,Business Indicators And B O P,Techmodal,142456," 13,260.00 ", Information Management Services,Large,Programme Exp
UK Statistics Authority,Office For National Statistics,26/06/2019,Exp - Purchase Of Goods And Services Consultants,Productivity Innovation Engagement And Research,Techmodal,142456," 13,440.00 ", Inormation Management Services,Large,Programme Exp
UK Statistics Authority,Office For National Statistics,03/06/2019,Exp - Purchase Of Goods And Services Consultants,Security And Information Management Saim,Bloom Procurement Services Ltd,30001393," 118,624.20 ", Census Information Management Service,Large,Programme Exp
UK Statistics Authority,Office For National Statistics,03/06/2019,"Ict Outsourcing, Maintenance And Support",It Operations,Esri (Uk) Ltd,30001394," 312,000.00 "," Software Licenses, Maintenance and Support",SME,Programme Exp
UK Statistics Authority,Office For National Statistics,03/06/2019,Capital Major Works >25K,Property Christchurch,Vinci Construction UK Limited,30001395," 207,600.00 ", Major Works Christchurch,Large,Programme Exp
UK Statistics Authority,Office For National Statistics,03/06/2019,Capital Major Works >25K,Property Titchfield,Paramount Office Interiors Ltd,30001397," 58,247.62 ", Major Works Titchfield,SME,Programme Exp
UK Statistics Authority,Office For National Statistics,03/06/2019,Major Works Over 25K,Property Titchfield,Paramount Office Interiors Ltd,30001397," 103,551.31 ", Major Works Titchfield,SME,Programme Exp
UK Statistics Authority,Office For National Statistics,03/06/2019,"Ict Outsourcing, Maintenance And Support",Productivity Innovation Engagement And Research,Panlogic UK,30001398," 31,536.00 "," Software Licenses, Maintenance and Support",SME,Programme Exp
UK Statistics Authority,Office For National Statistics,03/06/2019,Other Goods And Services,Crime Statistics,Kantar UK Ltd,30001399," 893,207.62 ", Statistical Services,Large,Programme Exp
UK Statistics Authority,Office For National Statistics,12/06/2019,"Ict Outsourcing, Maintenance And Support",Cdio Ungp,"CCRi - Commonwealth Computer Research, Inc",30001414," 34,609.18 ", United Nations Global Platform,Large,Programme Exp
UK Statistics Authority,Office For National Statistics,20/06/2019,Electricity,Property Titchfield,Edf Energy,30001425," 27,157.02 ", Electricity Charges Titchfield,Large,Programme Exp
UK Statistics Authority,Office For National Statistics,20/06/2019,Electricity,Property Newport,Edf Energy,30001426," 27,621.59 ", Electricity Charges Newport,Large,Programme Exp
UK Statistics Authority,Office For National Statistics,28/06/2019,Web Hosting,It Operations,Amazon Web Services Inc,30001441," 70,194.80 ",Web Hosting Services,Large,Programme Exp
